bitfinex/quotes_SOLUSD_20250619
["timestamp","ask_amount","ask_price","bid_price","bid_amount"]
[1750344711957,26.0,143.26,143.21,6.98257355]
[1750344712155,19.7865764,143.22,143.19,6.98372791]
[1750344716442,32.98039789,143.26,143.19,26.77030431]
[1750344716643,19.7865764,143.24,143.2,19.7865764]
[1750344717247,19.7865764,143.29,143.23,19.7865764]
[1750344717574,19.7865764,143.29,143.25,19.7865764]
[1750344718145,43.77080127,143.33,143.25,19.7865764]
[1750344718349,19.7865764,143.3,143.27,19.7865764]
[1750344718562,19.7865764,143.3,143.27,26.76600585]
[1750344718847,26.0,143.32,143.27,6.97942945]
[1750344719073,19.7865764,143.3,143.27,6.97942945]
[1750344719368,19.7865764,143.29,143.25,6.98080279]
[1750344719573,19.7865764,143.29,143.25,26.76737919]
[1750344720073,19.7865764,143.28,143.25,26.76737919]
[1750344720251,32.97744104,143.32,143.25,6.98080279]
[1750344720574,19.7865764,143.26,143.23,6.98177756]
[1750344720778,26.0,143.29,143.22,15.07508649]
[1750344720948,19.7865764,143.26,143.22,15.07508649]
[1750344721148,19.7865764,143.26,143.22,34.86166289]
[1750344721350,19.7865764,143.23,143.2,7.16]
[1750344721556,19.7865764,143.22,143.2,14.1431767]
[1750344721777,5.1164438,143.26,143.2,14.1431767]
[1750344722063,19.7865764,143.23,143.2,14.1431767]
[1750344722765,6.98087307,143.25,143.2,14.1431767]
[1750344722973,19.7865764,143.23,143.2,14.1431767]
[1750344723683,12.09740411,143.26,143.2,14.1431767]
[1750344723853,19.7865764,143.23,143.2,14.1431767]
[1750344724955,6.98125009,143.25,143.2,14.1431767]
[1750344725163,19.7865764,143.23,143.2,14.1431767]
[1750344725878,19.7865764,143.23,143.2,7.16]
[1750344726077,19.7865764,143.22,143.19,14.79541069]
[1750344726451,19.7865764,143.24,143.2,19.7865764]
[1750344726657,19.7865764,143.23,143.19,34.58198709]
[1750344727181,19.7865764,143.23,143.19,14.79541069]
[1750344727477,19.7865764,143.23,143.19,34.58198709]
[1750344728078,19.7865764,143.24,143.2,19.7865764]
[1750344728777,19.7865764,143.25,143.21,26.769329]
[1750344729084,5.11688514,143.26,143.22,19.7865764]
[1750344729287,12.3554195,143.26,143.21,6.9827526]
[1750344729583,19.7865764,143.28,143.24,19.7865764]
[1750344729584,9.79080803,143.27,143.24,19.7865764]
[1750344729755,5.12832254,143.27,143.25,19.7865764]
[1750344729954,5.12841306,143.28,143.26,19.7865764]
[1750344730173,5.11688514,143.32,143.26,19.7865764]
[1750344730174,5.12841306,143.31,143.27,19.7865764]
[1750344730378,24.91498946,143.3,143.26,8.2009]
[1750344730686,19.7865764,143.29,143.26,27.9874764]
[1750344730976,19.7865764,143.29,143.27,6.97982829]
[1750344731177,19.7865764,143.3,143.27,6.97982829]
[1750344731953,19.7865764,143.29,143.26,15.18112073]
[1750344732174,19.7865764,143.28,143.26,15.18112073]
[1750344732475,19.7865764,143.28,143.26,6.98022073]
[1750344732677,19.7865764,143.29,143.26,6.98022073]
[1750344732851,6.9767712,143.34,143.28,19.7865764]
[1750344733051,19.7865764,143.32,143.28,19.7865764]
[1750344733251,5.12636504,143.34,143.28,19.7865764]
[1750344733475,19.7865764,143.33,143.29,19.7865764]
[1750344733778,19.7865764,143.32,143.28,19.7865764]
[1750344734364,19.7865764,143.32,143.26,24.4310095]
[1750344734579,19.7865764,143.27,143.23,8.1652]
[1750344734878,19.7865764,143.26,143.23,15.14675548]
[1750344735075,26.0,143.29,143.25,19.7865764]
[1750344735309,26.0,143.29,143.23,15.14675548]
[1750344735310,26.0,143.29,143.23,32.60119938]
[1750344735488,19.7865764,143.27,143.23,52.38777578]
[1750344736968,19.7865764,143.28,143.24,19.7865764]
[1750344737168,45.7865764,143.29,143.25,19.7865764]
[1750344737484,19.7865764,143.29,143.25,19.7865764]
[1750344737685,19.7865764,143.28,143.24,19.7865764]
[1750344737986,19.7865764,143.29,143.25,19.7865764]
[1750344738161,19.7865764,143.3,143.26,26.76689191]
[1750344738673,26.0,143.31,143.26,26.76689191]
[1750344738854,24.90661831,143.3,143.26,26.76689191]
[1750344739057,19.7865764,143.3,143.26,26.76689191]
[1750344739294,26.0,143.31,143.26,26.76689191]
[1750344739460,5.11964502,143.3,143.27,19.7865764]
[1750344739779,19.7865764,143.31,143.27,19.7865764]
[1750344740303,19.7865764,143.3,143.26,26.76689191]
[1750344741080,19.7865764,143.3,143.26,6.98031551]
[1750344741268,19.7865764,143.3,143.26,26.76689191]
[1750344741780,32.97700942,143.33,143.26,26.76689191]
[1750344741959,19.7865764,143.3,143.26,26.76689191]
[1750344742161,5.11793297,143.29,143.26,26.76689191]
[1750344742379,5.11793297,143.29,143.26,6.98031551]
[1750344742582,19.7865764,143.3,143.26,26.76689191]
[1750344742957,11.51562386,143.3,143.26,18.49593937]
[1750344743664,21.33788459,143.31,143.27,11.51562386]
[1750344743869,11.51562386,143.32,143.26,24.43110428]
[1750344744166,11.51562386,143.32,143.28,11.51562386]
[1750344744575,12.37950625,143.33,143.28,11.51562386]
[1750344744782,11.51562386,143.32,143.28,11.51562386]
[1750344744983,11.51562386,143.32,143.29,6.97885407]
[1750344745270,11.51562386,143.31,143.29,6.97885407]
[1750344746390,9.8147938,143.34,143.29,6.97885407]
[1750344746600,11.51562386,143.31,143.29,6.97885407]
[1750344747101,11.51562386,143.31,143.28,6.97934115]
[1750344750091,11.51562386,143.32,143.28,18.49496501]
[1750344750601,11.51562386,143.32,143.28,35.94331788]
[1750344751115,16.6316599,143.32,143.28,35.94331788]
[1750344751281,11.51562386,143.32,143.28,35.94331788]
[1750344751476,11.51562386,143.29,143.28,6.97934115]
[1750344751993,11.51562386,143.29,143.23,8.1652]
[1750344752198,11.51562386,143.26,143.24,6.98129014]
[1750344752505,9.80537129,143.3,143.24,6.98129014]
[1750344752680,11.51562386,143.26,143.24,6.98129014]
[1750344753010,6.97885407,143.29,143.24,6.98129014]
[1750344753182,11.51562386,143.26,143.24,6.98129014]
[1750344753379,11.51562386,143.25,143.24,6.98129014]
[1750344753587,11.51562386,143.26,143.24,6.98129014]
[1750344753998,9.80476189,143.29,143.24,18.496914]
[1750344754206,11.51562386,143.28,143.24,18.496914]
[1750344754608,36.08949447,143.35,143.24,24.43451549]
[1750344754779,11.51562386,143.3,143.26,11.51562386]
[1750344754981,16.62902267,143.3,143.27,6.97982829]
[1750344755182,23.88103084,143.32,143.28,11.51562386]
[1750344755407,5.11373234,143.31,143.28,11.51562386]
[1750344755593,11.51562386,143.32,143.28,11.51562386]
[1750344755797,12.36569706,143.33,143.28,11.51562386]
[1750344756003,16.6293562,143.33,143.29,11.51562386]
[1750344756189,11.51562386,143.32,143.28,11.51562386]
[1750344756687,5.11373234,143.32,143.29,11.51562386]
[1750344756890,12.3780645,143.34,143.3,19.73286395]
[1750344757098,19.73286395,143.34,143.32,6.97739324]
[1750344757282,19.73286395,143.33,143.32,6.97739324]
[1750344758300,19.73286395,143.33,143.31,6.97785914]
[1750344758616,19.73286395,143.32,143.31,6.97785914]
[1750344758985,32.97547978,143.36,143.31,6.97785914]
[1750344759207,29.55223853,143.35,143.31,26.71072309]
[1750344759393,19.73286395,143.35,143.31,26.71072309]
[1750344760100,19.73286395,143.34,143.31,6.97785914]
[1750344762800,19.73286395,143.36,143.32,19.73286395]
[1750344763009,5.11587565,143.35,143.33,19.73286395]
[1750344763313,19.73286395,143.36,143.33,19.73286395]
[1750344763514,41.07423113,143.38,143.33,19.73286395]
[1750344763699,5.11652427,143.37,143.31,24.42255944]
[1750344764013,19.73286395,143.36,143.32,19.73286395]
[1750344764328,17.63475206,143.38,143.33,19.73286395]
[1750344764329,9.95997557,143.38,143.33,19.73286395]
[1750344764527,19.76920012,143.38,143.32,19.73286395]
[1750344764819,19.73286395,143.36,143.33,6.97690643]
[1750344766219,9.95997557,143.38,143.33,26.70977038]
[1750344766394,19.73286395,143.37,143.33,26.70977038]
[1750344767009,19.73286395,143.36,143.33,26.70977038]
[1750344767209,19.73286395,143.36,143.32,19.73286395]
[1750344767612,19.73286395,143.35,143.31,44.15544437]
[1750344768026,9.95997557,143.38,143.31,44.15544437]
[1750344768205,9.95997557,143.38,143.32,19.73286395]
[1750344768407,19.73286395,143.36,143.32,19.73286395]
[1750344768607,19.73286395,143.36,143.31,24.42258042]
[1750344769017,19.73286395,143.35,143.31,44.15544437]
[1750344770111,9.95997557,143.38,143.31,44.15544437]
[1750344770436,19.73286395,143.35,143.31,44.15544437]
[1750344770610,19.73286395,143.35,143.32,19.73286395]
[1750344771120,19.73286395,143.36,143.32,19.73286395]
[1750344771627,19.73286395,143.36,143.33,6.97690643]
[1750344772406,35.95997557,143.38,143.33,6.97690643]
[1750344772600,24.84853243,143.37,143.33,26.70977038]
[1750344772862,19.73286395,143.37,143.33,26.70977038]
[1750344774117,35.95997557,143.38,143.35,19.73286395]
[1750344774309,55.69283952,143.38,143.34,19.73286395]
[1750344774619,35.95997557,143.38,143.33,24.41917252]
[1750344774813,55.69283952,143.38,143.34,19.73286395]
[1750344775128,35.95997557,143.38,143.35,19.73286395]
[1750344775909,35.95997557,143.38,143.36,19.73286395]
[1750344776429,19.73286395,143.4,143.37,19.73286395]
[1750344776837,19.73286395,143.4,143.37,11.49903072]
[1750344776838,37.49903072,143.4,143.37,11.49903072]
[1750344777337,26.0,143.39,143.37,11.49903072]
[1750344777524,37.49903072,143.4,143.37,11.49903072]
[1750344777722,37.49903072,143.4,143.36,19.33173072]
[1750344777931,11.49903072,143.37,143.36,7.8327]
[1750344778124,37.49903072,143.39,143.36,14.80814642]
[1750344778925,26.0,143.39,143.36,26.30717714]
[1750344779328,37.49903072,143.4,143.36,26.30717714]
[1750344779523,26.0,143.4,143.37,11.49903072]
[1750344779742,37.49903072,143.4,143.36,14.80814642]
[1750344779946,37.49903072,143.4,143.36,26.30717714]
[1750344780117,26.0,143.4,143.36,14.80814642]
[1750344780317,37.49903072,143.4,143.36,26.30717714]
[1750344781449,11.49903072,143.37,143.32,7.6928]
[1750344781640,11.49903072,143.35,143.32,7.6928]
[1750344781835,6.97447342,143.38,143.32,14.67019324]
[1750344782037,11.49903072,143.34,143.32,14.67019324]
[1750344782228,11.49903072,143.35,143.32,14.67019324]
[1750344782544,5.10918157,143.38,143.32,26.16922396]
[1750344782748,11.49903072,143.36,143.32,26.16922396]
[1750344782925,5.10918157,143.38,143.32,26.16922396]
[1750344783126,11.49903072,143.36,143.32,26.16922396]
[1750344783327,11.49903072,143.35,143.32,14.67019324]
[1750344783632,32.97420759,143.39,143.32,14.67019324]
[1750344783835,26.0,143.39,143.32,26.16922396]
[1750344784130,37.49903072,143.39,143.35,11.49903072]
[1750344784342,11.49903072,143.38,143.35,11.49903072]
[1750344784535,26.0,143.39,143.34,11.49903072]
[1750344784746,11.49903072,143.38,143.34,11.49903072]
[1750344785750,11.49903072,143.38,143.35,6.97593303]
[1750344786250,26.0,143.39,143.35,6.97593303]
[1750344786455,11.49903072,143.38,143.35,6.97593303]
[1750344786756,26.0,143.39,143.35,6.97593303]
[1750344786930,11.49903072,143.37,143.35,6.97593303]
[1750344787340,26.0,143.39,143.32,25.13628311]
[1750344787341,11.49903072,143.36,143.34,6.97618629]
[1750344787940,11.49903072,143.36,143.33,6.97690643]
[1750344788829,11.49903072,143.35,143.32,14.66999359]
[1750344790365,26.0,143.36,143.32,14.66999359]
[1750344790534,37.49903072,143.36,143.32,26.16902431]
[1750344791349,37.49903072,143.37,143.33,11.49903072]
[1750344791550,11.49903072,143.36,143.32,26.16902431]
[1750344792134,37.49903072,143.36,143.32,26.16902431]
[1750344792751,11.49903072,143.35,143.32,26.16902431]
[1750344792936,11.49903072,143.35,143.32,14.66999359]
[1750344793351,26.0,143.36,143.32,26.16902431]
[1750344793652,37.49903072,143.36,143.32,26.16902431]
[1750344793854,26.0,143.36,143.33,11.49903072]
[1750344794152,37.49903072,143.39,143.35,11.49903072]
[1750344794448,26.0,143.38,143.32,32.1134767]
[1750344794647,11.49903072,143.37,143.32,32.1134767]
[1750344794850,11.49903072,143.37,143.33,11.49903072]
[1750344795241,5.11878576,143.38,143.32,32.1134767]
[1750344795542,11.49903072,143.37,143.33,11.49903072]
[1750344795740,5.11878576,143.38,143.33,11.49903072]
[1750344796052,11.49903072,143.37,143.33,11.49903072]
[1750344796453,11.49903072,143.35,143.32,14.66999359]
[1750344796656,37.49903072,143.35,143.32,14.66999359]
[1750344797833,26.0,143.35,143.32,14.66999359]
[1750344798142,37.49903072,143.35,143.32,14.66999359]
[1750344798943,26.0,143.35,143.32,14.66999359]
[1750344799137,16.62446801,143.39,143.34,11.49903072]
[1750344799334,5.12692279,143.38,143.34,11.49903072]
[1750344799533,16.62595351,143.38,143.34,11.49903072]
[1750344799779,11.49903072,143.38,143.34,11.49903072]
[1750344799940,16.62595351,143.38,143.34,11.49903072]
[1750344800139,11.49903072,143.38,143.34,11.49903072]
[1750344800452,11.49903072,143.38,143.35,6.97593303]
[1750344801160,16.63064,143.37,143.35,6.97593303]
[1750344801466,16.63064,143.36,143.34,6.97622566]
[1750344801664,11.49903072,143.36,143.33,6.97667564]
[1750344802461,16.19194139,143.37,143.33,6.97667564]
[1750344802670,5.12886308,143.36,143.33,6.97667564]
[1750344802911,16.19194139,143.37,143.33,6.97667564]
[1750344803050,5.12850978,143.36,143.33,18.47570636]
[1750344803245,9.82204327,143.37,143.34,11.49903072]
[1750344803448,16.62941959,143.39,143.35,11.49903072]
[1750344803449,5.1291326,143.36,143.35,11.49903072]
[1750344803650,5.13155733,143.37,143.35,11.49903072]
[1750344803853,5.13200789,143.37,143.35,11.49903072]
[1750344805273,5.13200789,143.37,143.36,6.97544642]
[1750344806443,4.70003916,143.38,143.36,6.97544642]
[1750344806645,5.13195761,143.37,143.36,18.47447714]
[1750344806848,16.63285487,143.37,143.34,6.9764197]
[1750344807072,11.49903072,143.37,143.34,6.9764197]
[1750344808361,7.69720085,143.39,143.34,6.9764197]
[1750344808554,11.49903072,143.37,143.34,6.9764197]
[1750344808757,5.13288773,143.36,143.34,6.9764197]
[1750344808953,11.49903072,143.37,143.34,6.9764197]
[1750344809148,5.13296336,143.36,143.34,6.9764197]
[1750344809344,11.49903072,143.35,143.32,6.97722256]
[1750344809661,16.63160083,143.34,143.32,6.97722256]
[1750344809860,11.49903072,143.34,143.32,6.97722256]
[1750344810062,11.49903072,143.34,143.31,6.97788012]
[1750344810288,16.19615511,143.35,143.31,6.97788012]
[1750344810581,11.49903072,143.33,143.31,6.97788012]
[1750344810759,11.49903072,143.33,143.3,13.83822207]
[1750344811373,11.49903072,143.32,143.3,6.97822207]
[1750344811578,16.6302963,143.31,143.26,35.16446636]
[1750344811743,7.26259867,143.33,143.27,6.97982829]
[1750344811744,11.49903072,143.29,143.27,6.97982829]
[1750344812088,11.49903072,143.28,143.26,6.98018622]
[1750344812451,16.62899044,143.28,143.26,6.98018622]
[1750344812877,11.49903072,143.28,143.25,59.24996087]
[1750344814179,18.64964886,143.33,143.25,59.24996087]
[1750344814180,19.66048457,143.36,143.27,11.49903072]
[1750344814366,11.49903072,143.32,143.28,11.49903072]
[1750344814564,11.49903072,143.32,143.25,76.70196785]
[1750344814565,16.61927116,143.31,143.27,11.49903072]
[1750344814878,21.30998946,143.31,143.27,11.49903072]
[1750344815055,11.49903072,143.31,143.27,11.49903072]
[1750344815257,11.49903072,143.31,143.28,6.97934115]
[1750344815467,16.61940912,143.31,143.28,6.97934115]
[1750344815658,11.49903072,143.31,143.28,6.97934115]
[1750344815853,11.49903072,143.31,143.29,11.49903072]
[1750344815854,5.1203784,143.31,143.29,11.49903072]
[1750344816080,5.1203784,143.32,143.29,11.49903072]
[1750344816370,16.61940912,143.32,143.28,18.47837187]
[1750344817078,37.49903072,143.34,143.28,30.49599402]
[1750344817373,5.11737624,143.33,143.3,11.49903072]
[1750344817582,5.11737624,143.33,143.28,30.49599402]
[1750344817796,5.11737624,143.33,143.3,11.49903072]
[1750344818080,5.11837566,143.33,143.3,11.49903072]
[1750344818249,37.49903072,143.34,143.3,11.49903072]
[1750344818588,11.49903072,143.33,143.3,11.49903072]
[1750344818886,11.49903072,143.33,143.31,6.97788012]
[1750344820169,11.49903072,143.33,143.29,6.97885407]
[1750344820362,11.49903072,143.33,143.3,11.49903072]
[1750344820562,26.0,143.34,143.31,11.49903072]
[1750344821260,11.49903072,143.32,143.29,6.97885407]
[1750344821467,5.11664837,143.33,143.29,18.47788479]
[1750344821653,26.0,143.34,143.3,11.49903072]
[1750344821856,11.49903072,143.36,143.32,11.49903072]
[1750344822065,5.11741056,143.36,143.33,11.49903072]
[1750344822379,9.80501886,143.36,143.34,6.9764197]
[1750344822767,37.49903072,143.37,143.34,6.9764197]
[1750344823079,11.49903072,143.37,143.34,6.9764197]
[1750344823763,5.11828373,143.37,143.34,18.47545042]
[1750344824160,16.61731445,143.37,143.34,11.49903072]
[1750344824377,5.11828373,143.37,143.32,6.97739324]
[1750344824568,11.49903072,143.35,143.32,6.97739324]
[1750344824765,9.81331788,143.37,143.32,6.97739324]
[1750344824973,11.49903072,143.36,143.32,18.47642396]
[1750344825683,5.11828373,143.37,143.34,11.49903072]
[1750344825858,16.61731445,143.37,143.33,11.49903072]
[1750344826377,16.61731445,143.37,143.34,6.9764197]
[1750344826677,16.62030594,143.37,143.34,6.9764197]
[1750344827970,5.12127522,143.37,143.34,11.49903072]
[1750344828171,5.12127522,143.37,143.32,24.42087635]
[1750344828389,5.12127522,143.37,143.34,11.49903072]
[1750344828884,37.49903072,143.38,143.34,18.47503364]
[1750344829382,26.0,143.38,143.34,13.34830292]
[1750344829560,26.0,143.38,143.35,11.49903072]
[1750344830406,26.0,143.38,143.34,13.34830292]
[1750344830692,37.49903072,143.38,143.34,24.84733364]
[1750344833191,26.0,143.38,143.34,24.84733364]
[1750344833386,37.49903072,143.38,143.34,24.84733364]
[1750344834072,11.49903072,143.36,143.34,6.97600292]
[1750344834470,11.49903072,143.36,143.32,6.97739324]
[1750344834692,32.9745003,143.38,143.33,11.49903072]
[1750344834885,11.49903072,143.36,143.33,11.49903072]
[1750344835265,11.49903072,143.36,143.34,6.9764197]
[1750344835475,11.49903072,143.37,143.34,6.9764197]
[1750344836689,37.49903072,143.38,143.34,18.47545042]
[1750344836906,5.12537075,143.39,143.36,11.49903072]
[1750344837206,53.7925511,143.46,143.34,6.9764197]
[1750344837207,11.49903072,143.41,143.34,6.9764197]
[1750344837379,37.49903072,143.4,143.32,43.07052521]
[1750344837575,37.49903072,143.4,143.35,11.49903072]
[1750344837576,11.49903072,143.39,143.35,11.49903072]
[1750344838793,11.49903072,143.39,143.36,6.97544642]
[1750344839697,12.09906674,143.41,143.36,18.47447714]
[1750344839698,5.12602971,143.41,143.36,18.47447714]
[1750344839900,11.49903072,143.39,143.36,18.47447714]
[1750344840079,26.0,143.41,143.36,18.47447714]
[1750344840593,11.49903072,143.4,143.36,18.47447714]
[1750344841487,37.49903072,143.41,143.37,13.07763072]
[1750344841687,37.49903072,143.41,143.34,6.9764197]
[1750344841688,37.49903072,143.38,143.34,6.9764197]
[1750344842084,37.49903072,143.38,143.35,11.49903072]
[1750344842283,26.0,143.41,143.36,11.49903072]
[1750344842498,37.49903072,143.41,143.37,11.49903072]
[1750344842706,11.49903072,143.4,143.36,11.49903072]
[1750344842881,11.49903072,143.4,143.34,24.41746895]
[1750344843215,11.49903072,143.4,143.36,11.49903072]
[1750344844991,26.0,143.39,143.37,6.97495989]
[1750344845608,37.49903072,143.4,143.37,6.97495989]
[1750344846925,18.64964886,143.44,143.38,11.49903072]
[1750344847203,10.84732193,143.46,143.4,11.49903072]
[1750344847403,37.49903072,143.44,143.4,11.49903072]
[1750344848213,5.12847083,143.46,143.4,11.49903072]
[1750344848398,11.49903072,143.44,143.41,11.49903072]
[1750344848707,37.49903072,143.44,143.4,11.49903072]
[1750344849211,37.49903072,143.44,143.41,6.97301443]
[1750344849409,11.49903072,143.43,143.41,6.97301443]
[1750344849794,11.49903072,143.44,143.41,6.97301443]
[1750344850697,11.49903072,143.43,143.41,6.97301443]
[1750344851228,11.49903072,143.43,143.4,6.97350069]
[1750344852093,6.97109121,143.45,143.4,6.97350069]
[1750344852293,11.49903072,143.43,143.4,6.97350069]
[1750344853618,6.97109121,143.45,143.4,6.97350069]
[1750344853912,11.49903072,143.43,143.4,6.97350069]
[1750344854413,11.49903072,143.41,143.38,6.86]
[1750344854707,11.49903072,143.4,143.38,13.83422634]
[1750344855218,11.49903072,143.4,143.38,6.97422634]
[1750344855454,11.49903072,143.41,143.38,6.97422634]
[1750344855710,6.97208253,143.43,143.38,6.97422634]
[1750344855911,11.49903072,143.41,143.38,6.97422634]
[1750344857713,6.97208253,143.43,143.38,6.97422634]
[1750344857893,11.49903072,143.41,143.38,6.97422634]
[1750344858093,26.0,143.42,143.38,6.97422634]
[1750344858403,11.49903072,143.41,143.38,6.97422634]
[1750344859602,26.0,143.42,143.38,6.97422634]
[1750344859807,11.49903072,143.41,143.38,6.97422634]
[1750344860129,11.49903072,143.39,143.36,6.97520351]
[1750344860335,11.49903072,143.37,143.35,15.05630916]
[1750344860714,11.49903072,143.38,143.35,15.05630916]
[1750344861033,37.49903072,143.42,143.35,15.05630916]
[1750344861210,11.49903072,143.41,143.37,11.49903072]
[1750344861407,26.0,143.42,143.37,11.49903072]
[1750344861613,11.49903072,143.41,143.37,11.49903072]
[1750344861919,11.49903072,143.41,143.38,6.97447342]
[1750344862833,26.0,143.43,143.38,18.47350414]
[1750344863006,5.12931649,143.45,143.4,11.49903072]
[1750344863206,5.12931649,143.47,143.41,19.45743072]
[1750344863403,11.49903072,143.46,143.42,11.49903072]
[1750344864130,11.49903072,143.46,143.43,6.97204211]
[1750344865910,26.0,143.47,143.43,6.97204211]
[1750344866234,11.49903072,143.46,143.43,6.97204211]
[1750344867232,11.49903072,143.46,143.43,18.47107283]
[1750344867816,31.13503005,143.48,143.43,18.47107283]
[1750344868331,42.63406077,143.48,143.44,11.49903072]
[1750344868635,42.63406077,143.48,143.44,18.47017554]
[1750344868837,37.49903072,143.48,143.44,18.47017554]
[1750344869033,26.0,143.48,143.44,18.47017554]
[1750344869335,37.49903072,143.48,143.44,18.47017554]
[1750344869726,26.0,143.48,143.44,18.47017554]
[1750344869925,37.49903072,143.48,143.44,18.47017554]
[1750344870122,26.0,143.48,143.44,18.47017554]
[1750344870338,37.49903072,143.48,143.44,18.47017554]
[1750344870935,26.0,143.48,143.44,18.47017554]
[1750344871231,37.49903072,143.48,143.44,18.47017554]
[1750344872046,37.49903072,143.48,143.44,6.97114482]
[1750344872240,37.49903072,143.48,143.44,18.47017554]
[1750344872442,26.0,143.48,143.44,18.47017554]
[1750344872646,37.49903072,143.48,143.44,18.47017554]
[1750344872946,26.0,143.48,143.44,18.47017554]
[1750344873450,37.49903072,143.48,143.44,18.47017554]
[1750344873616,26.0,143.48,143.44,18.47017554]
[1750344873819,37.49903072,143.48,143.44,18.47017554]
[1750344876536,26.0,143.48,143.44,6.97114482]
[1750344876734,37.49903072,143.48,143.44,18.47017554]
[1750344877038,37.49903072,143.48,143.44,6.97114482]
[1750344877446,11.49903072,143.47,143.44,6.97114482]
[1750344877647,11.49903072,143.47,143.44,18.47017554]
[1750344878239,19.48722308,143.49,143.44,18.47017554]
[1750344878552,26.0,143.5,143.47,11.49903072]
[1750344878736,194.90925663,143.57,143.47,7.846]
[1750344878937,11.49903072,143.51,143.47,7.846]
[1750344879124,11.49903072,143.49,143.47,7.846]
[1750344879330,18.64964886,143.52,143.47,1.5791]
[1750344879646,11.49903072,143.49,143.47,1.5791]
[1750344879953,11.49903072,143.49,143.47,8.54911577]
[1750344880126,51.6175767,143.52,143.47,8.54911577]
[1750344880127,11.49903072,143.51,143.47,20.04814649]
[1750344880324,16.6417788,143.52,143.48,11.49903072]
[1750344880652,25.61607273,143.55,143.48,11.49903072]
[1750344880851,37.49903072,143.52,143.48,11.49903072]
[1750344881154,34.78485016,143.56,143.5,11.49903072]
[1750344881155,5.14485016,143.54,143.5,11.49903072]
[1750344881361,37.49903072,143.54,143.47,25.97436146]
[1750344881664,16.64388088,143.55,143.51,11.49903072]
[1750344881826,11.49903072,143.54,143.5,11.49903072]
[1750344882025,32.96579265,143.56,143.51,6.96815552]
[1750344882246,11.49903072,143.52,143.49,6.96912676]
[1750344882761,11.49903072,143.52,143.47,19.00434569]
[1750344882762,11.49903072,143.5,143.47,1.5791]
[1750344882934,11.49903072,143.49,143.47,1.5791]
[1750344883135,26.0,143.52,143.47,1.5791]
[1750344883439,11.49903072,143.49,143.47,1.5791]
[1750344883640,26.0,143.52,143.47,1.5791]
[1750344883641,11.49903072,143.48,143.47,1.5791]
[1750344883833,11.49903072,143.48,143.44,7.5473]
[1750344884234,11.49903072,143.47,143.44,7.5473]
[1750344884728,11.49903072,143.48,143.44,26.01782302]
[1750344884928,31.14041569,143.52,143.44,26.01782302]
[1750344885129,11.49903072,143.48,143.44,26.01782302]
[1750344887330,12.10873481,143.51,143.44,26.01782302]
[1750344887530,11.49903072,143.48,143.44,26.01782302]
[1750344890157,11.49903072,143.47,143.44,14.5187923]
[1750344890974,8.16145385,143.55,143.46,11.49903072]
[1750344891139,11.49903072,143.54,143.5,11.49903072]
[1750344891458,26.0,143.56,143.49,11.49903072]
[1750344891633,11.49903072,143.53,143.49,11.49903072]
[1750344892356,11.49903072,143.53,143.5,6.96864111]
[1750344892937,5.1409018,143.55,143.5,6.96864111]
[1750344893254,38.10672307,143.56,143.5,18.46767183]
[1750344893464,11.49903072,143.54,143.5,18.46767183]
[1750344894260,5.1409018,143.55,143.5,18.46767183]
[1750344894444,38.10672307,143.56,143.5,6.96864111]
[1750344894652,11.49903072,143.54,143.5,18.46767183]
[1750344894959,11.49903072,143.54,143.5,6.96864111]
[1750344895166,11.49903072,143.54,143.5,18.46767183]
[1750344895963,5.1409018,143.55,143.5,18.46767183]
[1750344896154,11.49903072,143.54,143.5,18.46767183]
[1750344896350,11.49903072,143.54,143.51,11.49903072]
[1750344896546,11.49903072,143.54,143.5,6.96864111]
[1750344896749,11.49903072,143.54,143.51,11.49903072]
[1750344896982,11.49903072,143.55,143.51,11.49903072]
[1750344897483,26.0,143.56,143.53,11.49903072]
[1750344898066,11.49903072,143.57,143.54,6.96669917]
[1750344899368,11.49903072,143.57,143.53,24.65655969]
[1750344899570,26.0,143.58,143.54,11.49903072]
[1750344899743,26.0,143.58,143.55,11.49903072]
[1750344900061,11.49903072,143.58,143.56,6.96572861]
[1750344900264,12.09488459,143.61,143.54,18.46572989]
[1750344900265,26.0,143.6,143.54,18.46572989]
[1750344900505,11.49903072,143.57,143.54,6.96669917]
[1750344901151,11.49903072,143.58,143.54,6.96669917]
[1750344901469,11.49903072,143.6,143.54,24.38344711]
[1750344901663,11.49903072,143.58,143.54,24.38344711]
[1750344901976,11.49903072,143.59,143.56,6.96572861]
[1750344903163,11.49903072,143.59,143.55,18.46512713]
[1750344903344,6.96345789,143.61,143.55,18.46512713]
[1750344903539,11.49903072,143.59,143.55,18.46512713]
[1750344903775,11.49903072,143.58,143.55,6.96609641]
[1750344903975,11.49903072,143.57,143.53,24.65641242]
[1750344904268,11.49903072,143.56,143.53,13.1573817]
[1750344904869,11.49903072,143.57,143.53,24.65641242]
[1750344905751,6.96435933,143.59,143.53,24.65641242]
[1750344905951,18.64964886,143.6,143.53,13.1573817]
[1750344906158,11.49903072,143.55,143.53,6.1904]
[1750344906553,11.49903072,143.54,143.49,8.1676]
[1750344906754,11.49903072,143.53,143.5,6.96858701]